bitfinex/quotes_ETHUSD_20240817
["timestamp","ask_amount","ask_price","bid_price","bid_amount"]
[1723893171292,1.20207816,2604.2,2603.8,2.88038]
[1723893173749,1.20207816,2604.2,2603.9,2.88027]
[1723893173889,3.45947816,2604.3,2603.9,2.88027]
[1723893174704,1.20207816,2604.2,2603.9,2.88027]
[1723893175701,1.20207816,2604.2,2603.9,5.76049]
[1723893175935,1.20207816,2604.2,2604.0,2.88017]
[1723893176123,1.20207816,2604.3,2604.0,5.788419]
[1723893176324,1.20207816,2604.4,2604.0,5.788419]
[1723893176527,1.20207816,2604.3,2604.0,5.21238]
[1723893176827,1.20207816,2604.4,2604.0,5.21238]
[1723893177141,1.20207816,2604.4,2604.2,2.87996]
[1723893178086,1.20207816,2604.4,2604.2,2.87989]
[1723893178374,1.20207816,2604.5,2604.3,2.87985]
[1723893179678,1.20207816,2604.5,2604.2,2.87989]
[1723893180639,1.20207816,2604.4,2604.2,2.87989]
[1723893181956,1.20207816,2604.4,2604.2,5.75977]
[1723893182162,1.20207816,2604.4,2604.3,2.87985]
[1723893182364,1.60277088,2604.5,2604.3,2.87985]
[1723893182365,1.20207816,2604.5,2604.3,2.87985]
[1723893182780,1.20207816,2604.4,2604.3,2.87985]
[1723893183958,1.20207816,2604.5,2604.3,2.87985]
[1723893184154,1.20207816,2604.5,2604.1,3.6602]
[1723893184155,1.20207816,2604.6,2604.4,2.87972]
[1723893184364,1.20207816,2604.7,2604.4,2.87972]
[1723893187491,1.20207816,2604.8,2604.4,2.87972]
[1723893189399,1.20207816,2604.8,2604.4,2.87967]
[1723893190395,3.67547816,2604.9,2604.6,2.87944]
[1723893190582,1.20207816,2605.0,2604.6,2.87944]
[1723893190783,3.67547816,2605.1,2604.6,5.75888]
[1723893190953,1.20207816,2605.2,2604.7,2.3322]
[1723893191361,14.00429816,2605.3,2604.7,5.21154]
[1723893191573,1.20207816,2605.2,2604.7,5.21154]
[1723893191895,15.77909319,2605.3,2604.7,5.21154]
[1723893192074,1.73818641,2605.2,2604.7,5.21154]
[1723893192279,1.73818641,2605.2,2604.8,2.87929]
[1723893194405,11.12547816,2605.3,2604.8,2.87929]
[1723893195780,9.9234,2605.3,2604.8,2.87929]
[1723893195994,2.4734,2605.3,2604.8,2.87929]
[1723893197678,4.08074816,2605.4,2604.8,2.87929]
[1723893199428,3.58547816,2605.5,2604.9,1.328]
[1723893199586,2.3834,2605.5,2605.1,2.87895]
[1723893199786,0.35854782,2605.4,2605.1,2.87895]
[1723893200136,2.3834,2605.5,2605.1,2.87895]
[1723893201291,3.58547816,2605.7,2605.2,2.87878]
[1723893201510,2.3834,2605.7,2605.3,2.87874]
[1723893201753,3.9350479,2605.7,2605.3,2.87874]
[1723893202383,3.9350479,2605.7,2605.2,2.87878]
[1723893203196,5.2630479,2605.7,2605.2,2.87878]
[1723893203701,1.328,2605.5,2604.8,5.23152]
[1723893203918,2.3834,2605.2,2604.8,2.87922]
[1723893204117,0.37114,2605.1,2604.8,2.87922]
[1723893204298,2.3834,2605.2,2604.8,2.87922]
[1723893205336,2.87864,2605.4,2604.8,2.87922]
[1723893205337,2.3834,2605.5,2604.9,2.87917]
[1723893205683,2.3834,2605.5,2605.0,6.55929]
[1723893206122,2.3834,2605.5,2605.0,5.23129]
[1723893206331,2.3834,2605.5,2605.0,2.87899]
[1723893207030,2.3834,2605.5,2605.0,5.75799]
[1723893207190,2.3834,2605.5,2605.0,2.87899]
[1723893207585,3.18494461,2605.5,2605.0,2.87899]
[1723893208502,3.18494461,2605.5,2605.0,5.75798]
[1723893209129,2.3834,2605.5,2605.1,2.87888]
[1723893209358,3.9350479,2605.7,2605.2,2.87885]
[1723893209638,2.3834,2605.7,2605.2,5.75761]
[1723893209792,2.3834,2605.7,2605.2,2.87876]
[1723893218208,2.3834,2605.7,2605.3,2.87867]
[1723893219430,9.8031,2605.9,2605.3,2.87867]
[1723893219916,2.3531,2605.9,2605.4,2.87862]
[1723893220112,3.55517816,2606.1,2605.5,2.87851]
[1723893220356,2.3531,2606.1,2605.5,2.87851]
[1723893220570,3.55517816,2606.1,2605.5,2.87851]
[1723893221012,4.0344709,2606.1,2605.5,2.87851]
[1723893221450,5.23654906,2606.1,2605.5,2.87851]
[1723893221765,6.56454906,2606.1,2605.5,2.87851]
[1723893222425,6.43314816,2606.0,2605.4,2.87862]
[1723893222630,0.94425191,2605.9,2605.4,2.87862]
[1723893223956,0.94425191,2605.9,2605.2,2.87878]
[1723893224155,2.3531,2605.8,2605.2,2.87878]
[1723893224314,5.2313,2605.8,2605.2,2.87878]
[1723893225629,2.3531,2605.8,2605.2,2.87876]
[1723893225957,2.3531,2605.8,2605.3,2.87873]
[1723893226159,2.3531,2605.8,2605.2,2.87876]
[1723893226362,5.2314,2605.7,2605.2,2.87876]
[1723893226573,5.2314,2605.7,2605.0,2.879]
[1723893226772,5.2314,2605.7,2604.8,6.57421]
[1723893226773,2.87852,2605.5,2604.8,6.57421]
[1723893226944,2.3531,2605.4,2604.9,3.0]
[1723893227976,2.3531,2605.4,2604.9,5.87917]
[1723893228735,2.3531,2605.4,2605.0,2.87905]
[1723893229832,2.3531,2605.4,2605.0,4.207]
[1723893231181,2.3531,2605.4,2605.1,2.87887]
[1723893232262,2.3531,2605.4,2604.8,2.87922]
[1723893232466,2.3531,2605.2,2604.8,2.87922]
[1723893232649,2.3531,2605.2,2604.7,1.328]
[1723893232650,2.3531,2605.2,2604.7,2.8794]
[1723893232850,2.3531,2605.2,2604.4,2.87969]
[1723893232851,5.23214,2605.1,2604.4,2.87969]
[1723893233171,5.23214,2605.1,2604.2,5.24692]
[1723893233172,2.3531,2604.9,2604.2,5.7598]
[1723893233480,2.3531,2604.9,2604.2,2.87988]
[1723893233481,2.3531,2604.8,2604.2,2.87988]
[1723893235169,2.3869,2604.5,2604.0,2.88014]
[1723893235367,2.3869,2604.4,2603.8,2.8803]
[1723893235555,2.3869,2604.4,2603.6,2.8806]
[1723893235556,2.3869,2604.3,2603.6,4.20854]
[1723893235985,5.26676,2604.3,2603.6,4.20854]
[1723893236298,2.3869,2604.1,2603.6,2.88054]
[1723893237754,2.3869,2604.1,2603.8,2.8804]
[1723893237902,2.3869,2604.1,2603.9,2.88028]
[1723893238107,4.08160816,2604.6,2603.9,2.88028]
[1723893238108,2.3869,2604.3,2603.9,2.88028]
[1723893238666,2.3869,2604.3,2603.7,2.3205]
[1723893238667,2.3869,2604.6,2604.0,2.88007]
[1723893238870,2.3869,2604.6,2604.2,2.87995]
[1723893239785,2.3869,2604.6,2604.3,2.87984]
[1723893239988,12.49365116,2604.9,2604.4,2.87973]
[1723893239989,7.45,2604.9,2604.4,2.87973]
[1723893240223,9.8369,2604.9,2604.4,2.87973]
[1723893240517,0.86520782,2604.8,2604.4,2.87973]
[1723893240872,2.3869,2604.9,2604.4,2.87973]
[1723893241542,2.3869,2604.9,2604.2,8.08033]
[1723893241677,2.3869,2604.9,2604.2,5.20038]
[1723893242504,5.2661,2604.9,2604.2,2.87988]
[1723893242834,0.23869,2604.8,2604.2,2.87988]
[1723893243776,2.3869,2604.7,2604.2,2.87988]
[1723893249216,2.3869,2604.7,2604.2,5.75975]
[1723893249798,2.3869,2604.7,2604.2,2.87987]
[1723893253138,2.3838,2604.5,2604.0,2.88014]
[1723893253840,2.3838,2604.4,2603.8,2.88032]
[1723893254052,2.3838,2604.4,2603.9,2.88027]
[1723893256662,2.3838,2604.4,2604.0,2.88017]
[1723893256861,2.3838,2604.4,2604.0,2.8801]
[1723893259760,2.3838,2604.4,2604.1,2.88006]
[1723893264754,2.3838,2604.4,2604.3,2.87985]
[1723893264953,2.4177,2604.7,2604.3,2.87985]
[1723893270357,1.11947,2604.6,2604.1,2.87999]
[1723893270557,4.2063,2604.8,2604.1,2.87998]
[1723893270558,2.4177,2604.5,2604.1,2.87998]
[1723893270812,2.4177,2604.5,2604.2,2.87993]
[1723893272265,2.4177,2604.5,2604.3,2.87984]
[1723893278406,3.61977816,2604.5,2604.3,2.87984]
[1723893278610,3.61977816,2604.5,2604.1,2.87998]
[1723893278611,3.61977816,2604.5,2604.1,5.75998]
[1723893278967,3.61977816,2604.5,2604.2,2.87995]
[1723893279571,1.20207816,2604.3,2603.7,2.88047]
[1723893279794,1.20207816,2604.3,2603.7,5.76085]
[1723893279998,1.20207816,2604.3,2603.7,2.88042]
[1723893280183,3.69437816,2604.2,2603.7,2.88042]
[1723893283292,3.69437816,2604.2,2603.7,5.76085]
[1723893283613,2.4923,2604.2,2603.8,2.8804]
[1723893291526,3.69437816,2604.2,2603.8,2.8804]
[1723893291899,2.4923,2604.2,2603.8,2.8804]
[1723893292984,3.69437816,2604.2,2603.8,2.8804]
[1723893293828,3.69437816,2604.2,2603.7,5.76085]
[1723893294127,2.4923,2604.2,2603.7,2.88042]
[1723893295497,2.4642,2604.0,2603.5,4.20764]
[1723893296087,2.4642,2604.0,2603.5,2.88064]
[1723893296592,2.4642,2604.0,2603.6,2.88061]
[1723893299765,2.4642,2604.0,2603.7,2.8805]
[1723893300737,2.4642,2604.0,2603.5,4.20764]
[1723893301281,2.4642,2604.0,2603.5,5.76129]
[1723893301827,2.4642,2604.0,2603.6,2.88062]
[1723893302024,2.4642,2604.0,2603.3,2.88087]
[1723893302025,3.7912,2604.0,2603.3,2.88087]
[1723893302260,2.4642,2603.8,2603.3,2.88087]
[1723893304176,2.4642,2603.7,2603.3,2.88087]
[1723893304964,2.4642,2603.7,2603.3,4.20787]
[1723893306088,2.4642,2603.7,2603.5,2.88073]
[1723893307305,2.4642,2604.0,2603.5,2.88073]
[1723893309191,2.4642,2604.0,2603.1,2.8811]
[1723893309192,2.4642,2603.8,2603.1,2.8811]
[1723893309507,2.4642,2603.7,2603.1,2.8811]
[1723893310809,2.4642,2603.7,2603.2,2.88106]
[1723893311791,2.4642,2603.7,2603.3,1.327]
[1723893311989,2.4642,2603.7,2603.4,2.88083]
[1723893312506,1.60277088,2604.2,2603.7,2.8805]
[1723893312507,2.4642,2604.0,2603.7,2.8805]
[1723893312693,1.20207816,2604.3,2603.7,1.327]
[1723893312865,2.4642,2604.2,2603.8,2.88032]
[1723893316865,3.47477816,2604.4,2603.8,2.88032]
[1723893317416,2.2727,2604.2,2603.8,2.88032]
[1723893317817,2.2727,2604.2,2603.6,5.76112]
[1723893318319,2.2727,2604.2,2603.7,2.8805]
[1723893318320,2.78647105,2604.2,2603.7,2.8805]
[1723893320417,2.78647105,2604.2,2603.8,2.8804]
[1723893320658,2.2727,2604.2,2603.8,2.8804]
[1723893321672,3.47477816,2604.4,2603.8,2.88032]
[1723893321872,5.21695136,2604.4,2603.8,2.88032]
[1723893322044,1.20207816,2604.3,2603.9,2.88021]
[1723893324075,3.47477816,2604.4,2603.9,2.88021]
[1723893324539,1.20207816,2604.3,2603.9,2.88021]
[1723893327366,1.20207816,2604.3,2603.9,5.17341]
[1723893327767,3.47477816,2604.4,2603.9,2.88021]
[1723893328124,1.87759225,2604.3,2603.9,2.88021]
[1723893328960,0.67551409,2604.3,2603.9,2.88021]
[1723893329163,3.47477816,2604.4,2603.9,2.88021]
[1723893331054,1.20207816,2604.3,2603.9,2.88021]
[1723893331251,1.20207816,2604.3,2603.7,5.17368]
[1723893331472,1.20207816,2604.3,2603.8,0.55]
[1723893331639,1.20207816,2604.3,2603.8,3.43039]
[1723893332455,1.20207816,2604.3,2603.9,2.88028]
[1723893332658,2.2727,2604.4,2603.9,2.88028]
[1723893332659,3.47477816,2604.4,2603.9,2.88028]
[1723893333052,4.1656959,2604.4,2603.9,2.88028]
[1723893333594,1.20207816,2604.3,2603.9,2.88028]
[1723893334084,1.20207816,2604.3,2603.7,2.88043]
[1723893334251,2.2727,2604.1,2603.7,2.88043]
[1723893337277,3.47477816,2604.1,2603.7,2.88043]
[1723893337698,3.47477816,2604.1,2603.5,2.88071]
[1723893338515,6.35492816,2604.1,2603.5,2.88071]
[1723893338717,6.35492816,2604.1,2603.3,2.88088]
[1723893338718,2.3334,2603.9,2603.3,2.88088]
[1723893338921,2.3334,2603.9,2603.1,2.88113]
[1723893338922,5.21399,2603.7,2603.1,2.88113]
[1723893339226,6.41606816,2603.7,2603.1,2.88113]
[1723893339786,2.3334,2603.6,2603.1,2.88113]
[1723893340422,2.3334,2603.5,2602.9,4.20838]
[1723893340580,2.3334,2603.3,2602.7,2.88155]
[1723893340923,3.53547816,2603.3,2602.8,2.88149]
[1723893341127,4.51674606,2603.3,2602.8,2.88149]
[1723893341332,3.3146679,2603.3,2602.8,2.88149]
[1723893346144,2.3334,2603.3,2602.8,2.88149]
[1723893348325,5.21443,2603.3,2602.6,2.88165]
[1723893348557,5.35678,2603.2,2602.5,2.88179]
[1723893348845,2.4757,2603.1,2602.5,5.76353]
[1723893349030,5.35696,2603.1,2602.5,2.88174]
[1723893350205,5.35701,2603.0,2602.3,2.88198]
[1723893350548,2.4757,2602.9,2602.2,2.88211]
[1723893350850,2.4757,2602.7,2602.1,2.88227]
[1723893351065,2.4757,2602.7,2602.2,2.88215]
[1723893352164,2.4757,2602.7,2602.3,2.88206]
[1723893352478,2.4757,2603.0,2602.7,2.88158]
[1723893352615,2.4757,2603.0,2602.7,2.88152]
[1723893352814,2.4757,2603.0,2602.5,2.8818]
[1723893353224,2.4757,2603.0,2602.5,5.76356]
[1723893353456,2.4757,2603.0,2602.6,2.88169]
[1723893353658,2.4757,2603.0,2602.7,2.88162]
[1723893354077,2.4757,2603.2,2602.7,2.88162]
[1723893357821,4.044457,2603.2,2602.7,2.88162]
[1723893358221,6.925527,2603.2,2602.5,2.88176]
[1723893359041,2.8812,2603.1,2602.5,2.610701]
[1723893359219,3.3807727,2603.0,2602.5,2.610701]
[1723893359819,2.4001,2602.9,2602.5,2.610701]
[1723893360059,2.4001,2602.9,2602.3,2.88199]
[1723893360373,2.4001,2602.9,2602.5,2.88181]
[1723893360661,2.4001,2602.9,2602.3,2.88201]
[1723893361531,2.4001,2602.9,2602.5,2.88177]
[1723893362465,2.4001,2602.9,2602.1,2.427]
[1723893362466,2.88164,2602.7,2602.1,2.88219]
[1723893362769,2.4001,2602.5,2602.1,2.88219]
[1723893363640,2.4001,2602.5,2602.2,2.88215]
[1723893363969,2.4001,2602.9,2602.3,2.88204]
[1723893364174,3.061144,2602.9,2602.3,2.88204]
[1723893368174,5.942544,2602.9,2602.3,2.88204]
[1723893373867,3.061144,2602.9,2602.3,2.88204]
[1723893374065,3.061144,2602.9,2602.5,2.88173]
[1723893374066,2.4001,2602.9,2602.5,2.88173]
[1723893374365,2.4001,2603.1,2602.5,5.30873]
[1723893374580,3.433215,2603.1,2602.5,5.30873]
[1723893375035,6.314415,2603.1,2602.5,5.30873]
[1723893375231,3.433215,2603.1,2602.5,5.30873]
[1723893375433,2.4001,2603.1,2602.6,2.88172]
[1723893376479,2.4001,2603.1,2602.5,5.30873]
[1723893377652,2.4001,2603.1,2602.5,2.427]
[1723893377858,9.8426,2603.3,2602.8,2.88144]
[1723893378056,2.3926,2603.3,2602.8,2.88144]
[1723893381185,2.3926,2603.3,2602.8,5.76286]
[1723893381598,3.59467816,2603.5,2602.9,2.88138]
[1723893381757,2.3926,2603.5,2602.9,2.88138]
[1723893382258,19.77,2603.6,2603.2,2.88106]
[1723893383503,6.47512816,2603.8,2603.2,2.88106]
[1723893383663,7.77215245,2603.8,2603.2,2.88106]
[1723893384302,1.20207816,2603.7,2603.2,2.88106]
[1723893387560,4.08269816,2603.7,2603.1,2.3956]
[1723893387814,1.22555433,2603.6,2603.1,2.3956]
[1723893387965,1.22555433,2603.6,2603.2,1.328]
[1723893388387,2.42763249,2603.6,2603.2,1.328]
[1723893388607,1.22555433,2603.6,2603.2,1.328]
[1723893389700,2.2801,2603.5,2603.2,1.328]
[1723893389862,3.03893525,2603.5,2603.0,4.20922]
[1723893390064,3.03893525,2603.5,2602.8,5.30296]
[1723893390065,3.48217816,2603.5,2602.8,5.30296]
[1723893390303,3.48217816,2603.5,2602.9,1.328]
[1723893390304,2.2801,2603.5,2602.9,1.328]
[1723893390474,0.75883525,2603.4,2602.9,1.328]
[1723893391023,2.2801,2603.2,2602.5,2.8818]
[1723893391305,2.2801,2603.2,2602.6,1.328]
[1723893391306,3.48217816,2603.2,2602.6,1.328]
[1723893391602,1.20207816,2603.1,2602.6,1.328]
[1723893392126,6.36333816,2603.2,2602.6,1.328]
[1723893392413,0.71881322,2603.1,2602.6,1.328]
[1723893392625,1.92089138,2603.1,2602.6,1.328]
[1723893392802,0.71881322,2603.1,2602.6,1.328]
[1723893393017,1.92089138,2603.1,2602.6,1.328]
[1723893393178,0.70821514,2603.0,2602.6,1.328]
[1723893397892,2.4905,2602.9,2602.4,2.88185]
[1723893398784,3.69257816,2602.9,2602.3,2.88205]
[1723893398983,0.72820833,2602.8,2602.4,1.328]
[1723893399845,0.72820833,2602.8,2602.4,4.20994]
[1723893400155,1.20207816,2603.1,2602.6,1.328]
[1723893400298,1.20207816,2603.1,2602.6,4.20973]
[1723893400498,0.8176449,2603.0,2602.6,4.20973]
[1723893401937,0.8176449,2603.0,2602.6,1.328]
[1723893407953,0.8176449,2603.0,2602.4,2.88186]
[1723893409242,2.01972306,2603.0,2602.4,2.88186]
[1723893409749,0.8176449,2603.0,2602.4,2.88186]
[1723893410941,0.49009131,2602.9,2602.4,4.20986]
[1723893411357,0.8176449,2603.0,2602.4,4.20986]
[1723893412051,2.01972306,2603.0,2602.4,4.20986]
[1723893412407,0.8176449,2603.0,2602.4,4.20986]
[1723893414319,2.01972306,2603.0,2602.4,4.20986]
[1723893414515,0.8176449,2603.0,2602.4,7.09174]
[1723893414929,4.08326816,2603.1,2602.4,7.09174]
[1723893415112,1.20207816,2603.1,2602.6,2.8817]
[1723893415313,9.9405,2603.2,2602.6,2.8817]
[1723893415314,11.14257816,2603.2,2602.7,2.2938]
[1723893415559,12.96155213,2603.2,2602.7,2.2938]
[1723893416256,15.84262213,2603.2,2602.7,3.6218]
[1723893416455,15.84262213,2603.2,2602.6,2.8817]
[1723893416756,2.07504544,2603.1,2602.6,2.8817]
[1723893418531,6.1583136,2603.1,2602.6,2.8817]
[1723893418729,4.95623544,2603.1,2602.6,2.8817]
[1723893420262,6.1583136,2603.1,2602.6,2.8817]
[1723893420462,4.95623544,2603.1,2602.6,2.8817]
[1723893420662,1.60988136,2603.0,2602.6,2.8817]
[1723893424559,1.60988136,2603.0,2602.4,4.20987]
[1723893424560,2.3044,2602.9,2602.4,4.20987]
[1723893424772,2.3044,2602.9,2602.4,7.09175]
[1723893424932,2.3044,2602.9,2602.4,5.76375]
[1723893425330,3.26443104,2602.9,2602.4,5.76375]
[1723893425942,3.26443104,2602.9,2602.4,2.88187]
[1723893425943,6.14583104,2602.9,2602.4,2.88187]
[1723893426154,6.14583104,2602.9,2602.2,2.88212]
[1723893426155,2.3044,2602.8,2602.2,4.21012]
[1723893426454,3.20017906,2602.8,2602.2,4.21012]
[1723893427231,3.20017906,2602.8,2602.2,7.09222]
[1723893427425,4.4665092,2602.9,2602.4,1.328]
[1723893427632,4.4665092,2602.9,2602.4,4.20994]
[1723893427633,2.3044,2602.9,2602.4,4.20994]
[1723893430761,3.50647816,2602.9,2602.4,4.20994]
[1723893430977,4.59365206,2602.9,2602.4,4.20994]
[1723893431679,2.3044,2602.8,2602.2,5.76418]
[1723893431973,2.3044,2602.8,2602.3,2.88206]
[1723893432151,3.21218229,2602.8,2602.3,2.88206]
[1723893432547,4.41426045,2602.8,2602.3,2.88206]
[1723893435413,3.50647816,2602.8,2602.3,4.88704349]
[1723893435815,3.50647816,2602.8,2602.3,2.88206]
[1723893436026,3.50647816,2602.8,2602.4,2.88194]
[1723893437222,4.50685309,2602.8,2602.4,2.88194]
[1723893438447,1.20207816,2602.7,2602.4,2.88194]
[1723893439146,4.50685309,2602.8,2602.4,2.88194]
[1723893439500,1.20207816,2602.7,2602.4,2.88194]
[1723893440043,4.50685309,2602.8,2602.4,2.88194]
[1723893440813,1.20207816,2602.7,2602.4,2.88194]
[1723893441311,4.50685309,2602.8,2602.4,2.88194]
[1723893442158,1.20207816,2602.7,2602.4,2.88194]
[1723893443624,2.20267235,2602.7,2602.2,2.88208]
[1723893443953,2.20267235,2602.7,2602.0,5.25364]
[1723893443954,3.53807816,2602.5,2602.0,4.21031]
[1723893444174,3.53807816,2602.5,2602.2,2.88215]
[1723893445455,2.336,2602.5,2602.2,2.88215]
[1723893445655,3.53807816,2602.5,2602.2,2.88215]
[1723893446175,2.336,2602.5,2602.2,2.88215]
[1723893446563,2.336,2602.5,2602.0,8.58686029]
[1723893446564,2.95014432,2602.5,2602.0,6.21555029]
[1723893446740,1.20207816,2602.4,2601.8,4.88773353]
[1723893446940,1.20207816,2602.4,2601.8,4.21054]
[1723893446941,2.336,2602.2,2601.8,4.21054]
[1723893447172,1.20207816,2602.1,2601.8,4.21054]
[1723893447354,3.53807816,2602.2,2601.8,2.88254]
[1723893447556,4.48459446,2602.2,2601.8,2.88254]
[1723893447878,3.2825163,2602.2,2601.8,2.88254]
[1723893448291,3.2825163,2602.2,2601.7,1.328]
[1723893448624,6.1647663,2602.2,2601.6,2.88276]
[1723893448791,0.79967488,2602.1,2601.6,2.88276]
[1723893450216,2.336,2602.2,2601.7,1.328]
[1723893450396,3.53807816,2602.4,2601.8,5.2539]
[1723893451112,3.53807816,2602.4,2601.9,1.328]
[1723893451621,1.20207816,2602.5,2602.1,4.21028]
[1723893451777,10.98807816,2602.6,2602.2,2.88215]
[1723893451976,13.84830812,2602.6,2602.2,2.88215]
[1723893452180,12.64622996,2602.6,2602.2,2.88215]
[1723893452599,9.786,2602.6,2602.2,2.88215]
[1723893457433,7.45,2602.6,2602.2,2.88215]
[1723893457827,6.38648816,2602.8,2602.2,2.88215]
[1723893461334,1.20207816,2602.7,2602.2,2.88215]
[1723893461538,2.90628115,2602.7,2602.2,2.88215]
[1723893462732,1.70420299,2602.7,2602.2,2.88215]
[1723893463742,2.90628115,2602.7,2602.2,2.88215]
[1723893464267,1.70420299,2602.7,2602.2,2.88215]
[1723893465083,2.90628115,2602.7,2602.2,2.88215]
[1723893465453,1.70420299,2602.7,2602.2,2.88215]
[1723893466385,0.80906912,2602.6,2602.2,2.88215]
[1723893467286,2.01114728,2602.6,2602.2,2.88215]
[1723893468782,0.80906912,2602.6,2602.2,2.88215]
[1723893471283,2.90628115,2602.7,2602.2,2.88215]
[1723893477042,1.20207816,2602.6,2602.2,2.88215]
[1723893478407,3.30697387,2602.7,2602.2,2.88215]
[1723893478408,1.20207816,2602.5,2602.2,2.88215]
[1723893478718,1.20207816,2602.6,2602.2,2.88215]
[1723893478935,2.25266382,2602.6,2602.2,2.88215]
[1723893479543,1.20207816,2602.5,2602.2,2.88215]
[1723893479723,2.25266382,2602.6,2602.2,2.88215]
[1723893483919,1.05058566,2602.6,2602.2,2.88215]
[1723893484163,1.20207816,2602.7,2602.2,2.88215]
[1723893484358,1.20207816,2602.7,2602.3,1.328]
[1723893485858,1.20207816,2602.6,2602.3,1.328]
[1723893486064,1.20207816,2602.7,2602.3,1.328]
[1723893486555,1.20207816,2602.6,2602.3,1.328]
[1723893486760,1.20207816,2602.7,2602.5,1.328]
[1723893486958,1.20207816,2602.8,2602.5,1.328]
[1723893487522,1.20207816,2602.8,2602.7,1.328]
[1723893488323,1.20207816,2602.8,2602.4,5.16934]
[1723893488324,1.20207816,2602.8,2602.5,1.328]
[1723893493552,1.20207816,2602.8,2602.2,5.16963]
[1723893493765,1.20207816,2602.8,2602.5,1.328]
[1723893493962,2.48862863,2602.8,2602.5,1.328]
[1723893495506,1.20207816,2602.7,2602.5,1.328]
[1723893504534,1.20207816,2602.9,2602.6,5.25833]
[1723893504733,1.20207816,2602.9,2602.8,2.88151]
[1723893505151,1.20207816,2603.0,2602.8,4.20951]
[1723893509392,1.20207816,2603.1,2602.8,4.20951]
[1723893510787,1.20207816,2603.0,2602.8,1.328]
[1723893510987,1.20207816,2603.0,2602.6,5.25826]
[1723893511332,1.20207816,2603.0,2602.6,2.88166]
[1723893511757,1.20207816,2603.0,2602.7,1.328]
[1723893511967,2.83414177,2603.1,2602.7,1.328]
[1723893512173,1.20207816,2603.1,2602.7,1.328]
[1723893519842,1.20207816,2603.1,2602.9,1.328]
[1723893520054,1.20207816,2603.3,2603.0,2.4832]
[1723893520260,7.45,2603.5,2603.3,2.88095]
[1723893520490,1.20207816,2603.7,2603.5,2.88072]
[1723893520704,8.65207816,2603.9,2603.6,1.328]
[1723893521011,8.65207816,2603.9,2603.5,5.36393]
[1723893521012,7.45,2603.9,2603.8,1.328]
[1723893521174,8.65207816,2603.9,2603.8,1.328]
[1723893521375,7.45,2603.9,2603.8,1.328]
[1723893525603,7.45,2603.9,2603.5,2.4832]
[1723893525604,7.45,2603.9,2603.6,1.328]
[1723893525767,7.45,2603.9,2603.6,4.20861]
[1723893525964,7.45,2603.9,2603.8,1.328]
[1723893526168,5.35192,2604.3,2603.8,1.328]
[1723893527407,8.99828582,2604.3,2603.8,1.328]
[1723893529058,5.35192,2604.3,2603.8,1.328]
[1723893529209,2.472,2604.3,2603.8,1.328]
[1723893529722,10.32975,2604.4,2603.8,3.8112]
[1723893529924,7.45,2604.4,2604.2,1.328]
[1723893530104,6.96098816,2604.7,2604.2,1.328]
[1723893530105,5.35143,2604.7,2604.2,1.328]
[1723893530310,2.472,2604.7,2604.2,6.69114]
[1723893532354,2.472,2604.7,2604.2,3.8112]
[1723893532508,2.472,2604.7,2604.2,1.328]
[1723893532509,6.631553,2604.7,2604.2,1.328]
[1723893532708,6.631553,2604.7,2604.0,1.328]
[1723893532922,4.2877453,2604.6,2604.0,1.328]
[1723893533225,2.87963,2604.5,2604.0,1.328]
[1723893535014,1.4081553,2604.6,2604.0,1.328]
[1723893535239,5.35143,2604.7,2604.0,4.20818]
[1723893537834,2.87953,2604.6,2604.0,1.328]
[1723893539469,5.35143,2604.7,2604.0,4.20816]
[1723893539780,6.631573,2604.7,2604.0,4.20816]
[1723893540278,6.631573,2604.7,2604.1,2.3553]
[1723893540631,7.45,2604.8,2604.4,4.20772]
[1723893540836,2.3332,2604.9,2604.4,1.328]
[1723893541440,2.3332,2604.9,2604.4,4.20773]
[1723893541837,2.3332,2604.9,2604.4,1.328]
[1723893542587,2.3332,2604.9,2604.4,4.20773]
[1723893542751,24.98217,2605.1,2604.4,6.56303]
[1723893542951,2.87909,2605.0,2604.4,3.6833]
[1723893543743,2.87909,2605.0,2604.4,6.56303]
[1723893544688,12.66217,2605.1,2604.4,6.56303]
[1723893544884,9.7832,2605.1,2604.6,1.328]
[1723893545189,7.45,2605.1,2604.7,2.8794]
[1723893545688,7.45,2605.1,2604.8,2.4005]
[1723893546470,7.45,2605.1,2604.6,6.60801]
[1723893546631,7.45,2605.1,2604.7,2.87938]
[1723893549990,24.90346,2605.3,2604.7,2.87938]
[1723893554835,24.90346,2605.3,2604.5,2.87954]
[1723893554987,2.87904,2605.1,2604.4,3.6086]
[1723893555183,2.3275,2605.0,2604.4,3.6086]
[1723893555596,2.3275,2605.0,2604.4,6.4883]
[1723893556527,5.20661,2605.0,2604.4,6.4883]
[1723893557225,6.25678101,2605.0,2604.4,6.4883]
[1723893557526,6.25678101,2605.0,2604.2,2.2806]
[1723893557527,2.87919,2604.9,2604.2,2.2806]
[1723893557729,2.87919,2604.9,2604.3,4.20783]
[1723893560027,3.37767101,2605.0,2604.5,1.328]
[1723893560209,5.20658,2605.0,2604.5,1.328]
[1723893563184,2.87919,2604.9,2604.5,1.328]
[1723893564427,4.08111816,2605.1,2604.6,2.2806]
[1723893564589,0.40811182,2605.0,2604.6,2.2806]
[1723893564991,0.40811182,2605.0,2604.5,1.328]
[1723893565439,2.87904,2605.1,2604.6,2.87952]
[1723893565440,1.20207816,2605.1,2604.6,2.87952]
[1723893565714,5.20629,2605.3,2605.0,2.87904]
[1723893565715,1.20207816,2605.3,2605.0,2.87904]
[1723893566026,1.20207816,2605.4,2605.1,1.328]
[1723893566226,2.3275,2605.5,2605.1,1.328]
[1723893566424,7.11446539,2605.5,2605.1,1.328]
[1723893566613,1.20207816,2605.5,2605.1,1.328]